fUSD/lending_fUSD_20260205
["ID","MTS","AMOUNT","RATE_DAILY","PERIOD"]
[404567178,1770299445443,-891.61887448,0.00017998,5]
[404567179,1770299445454,-209.08407266,0.00017998,5]
[404567180,1770299445465,-500.0,0.00017998,5]
[404567181,1770299445476,-500.0,0.00017998,5]
[404567182,1770299445486,-500.0,0.00017998,5]
[404567183,1770299445499,-500.0,0.00017998,5]
[404567184,1770299445510,-500.0,0.00017998,5]
[404567185,1770299445520,-500.0,0.00017998,5]
[404567186,1770299445531,-500.0,0.00017998,5]
[404567187,1770299445542,-494.97768813,0.00017998,5]
[404567188,1770299445553,-500.0,0.00017998,5]
[404567189,1770299445564,-512.54322178,0.00017998,5]
[404567190,1770299445575,-29246.3725379,0.00017999,2]
[404567191,1770299445586,-1004.24833386,0.00017999,5]
[404567192,1770299445597,-983.7312206,0.00017999,2]
[404567193,1770299445608,-1115.83148205,0.00017999,5]
[404567194,1770299445619,-155.0,0.00017999,2]
[404567195,1770299445629,-250.0,0.00017999,2]
[404567196,1770299445640,-300.0,0.00017999,2]
[404567197,1770299445652,-300.0,0.00017999,2]
[404567198,1770299445661,-666.0,0.00017999,2]
[404567199,1770299445671,-300.0,0.00017999,2]
[404567200,1770299445682,-300.0,0.00017999,2]
[404567201,1770299445691,-666.0,0.00017999,2]
[404567202,1770299445702,-150.0,0.00017999,2]
[404567203,1770299445712,-150.0,0.00017999,2]
[404567204,1770299445722,-231.00018382,0.00017999,2]
[404567205,1770299445732,-284.80146065,0.00018,2]
[404567206,1770299445742,-2173399.6946965,0.00018,2]
[404567207,1770299445781,-500.0,0.00017982,2]
[404567208,1770299445791,-6.55054537,0.00018,2]
[404567209,1770299445804,-6958.9,0.00018,2]
[404567211,1770299445816,-7677.89614001,0.00018,2]
[404567219,1770299446556,-193.0,9.255e-05,2]
[404567220,1770299446566,-308.72,0.0001656,2]
[404567221,1770299446578,-1136.35245076,0.0001656,2]
[404567222,1770299446642,-119.88238886,0.0001656,2]
[404567223,1770299446653,-2821.74268759,0.00018,2]
[404567224,1770299446668,-7251.92670728,0.00018,2]
[404567225,1770299446774,-311.53000154,0.00018,2]
[404567226,1770299446790,-3762.76264798,0.00018,2]
[404567227,1770299446810,-7764.55811053,0.00018,2]
[404567228,1770299457216,-1024.86760112,0.00014579,2]
[404567229,1770299457244,-345.91474539,0.00014579,2]
[404567230,1770299457272,-277.63511856,0.00014579,2]
[404567231,1770299495487,500.0,0.00011625,2]
[404567232,1770299495646,500.0,0.0001168,2]
[404567233,1770299495840,500.0,0.00011735,2]
[404567234,1770299496092,500.0,0.00011789,2]
[404567235,1770299496291,500.0,0.00011844,2]
[404567236,1770299496574,500.0,0.00011899,2]
[404567237,1770299496767,500.0,0.00011954,2]
[404567238,1770299497441,380.01386771,0.00012009,2]
[404567239,1770299497642,150.0,0.00011625,2]
[404567240,1770299517453,-4056.78,0.00014829,2]
[404567241,1770299517485,-160.0,0.00014996,2]
[404567242,1770299517506,-2500.0,0.000153,2]
[404567243,1770299517519,-1477.25164061,0.000153,2]
[404567244,1770299517530,-79.52835939,0.00015337,2]
[404567245,1770299517547,-72.48903622,0.00015337,2]
[404567246,1770299517558,-87.51096378,0.0001577,2]
[404567247,1770299517570,-107.48903622,0.0001577,2]
[404567248,1770299517579,-300.0,0.0001577,2]
[404567249,1770299517590,-1158.96096378,0.00016067,2]
[404567250,1770299517672,-1341.03903622,0.00016067,2]
[404567251,1770299517702,-2500.0,0.00016067,2]
[404567252,1770299517724,-1341.03903622,0.00016067,2]
[404567253,1770299517735,-1158.96096378,0.00016067,2]
[404567254,1770299517744,-195.0,0.00016311,2]
[404567255,1770299517754,-300.0,0.00016311,2]
[404567256,1770299517763,-300.0,0.00016311,2]
[404567257,1770299517772,-546.03903622,0.00016311,2]
[404567258,1770299517792,-2317.93192756,0.00016311,2]
[404567259,1770299517835,-205.34337156,0.00016311,2]
[404567260,1770299517866,-2500.0,0.00016311,2]
[404567261,1770299517896,-152.01739561,0.00016433,2]
[404567262,1770299517926,-300.0,0.00016712,2]
[404567263,1770299517956,-165.83,0.00016712,2]
[404567264,1770299517989,-1477.25164061,0.00016756,2]
[404567265,1770299521339,300.0,0.0001631,2]
[404567266,1770299532560,-250.0,0.00017009,2]
[404567267,1770299532593,-550.76372393,0.00017009,2]
[404567268,1770299532625,-200.0,0.00017009,2]
[404567269,1770299532657,-174.61919141,0.00017099,2]
[404567270,1770299541027,2500.0,0.00017158,2]
[404567271,1770299550831,152.01739561,0.00015337,2]
[404567272,1770299551143,152.01739561,0.00016871,2]
[404567273,1770299567602,422.0522,0.00014728,2]
[404567274,1770299571960,578.20924308,0.00017099,2]
[404567275,1770299577782,-600.0,0.00017306,2]
[404567276,1770299587875,8800.01,0.00015967,2]
[404567277,1770299587903,10000.01,0.00015967,2]
[404567278,1770299587931,10000.01,0.00015967,2]
[404567279,1770299587960,10000.01,0.00015967,2]
[404567280,1770299587987,10000.01,0.00015967,2]
[404567281,1770299588013,10000.01,0.00015967,2]
[404567282,1770299589776,-10000.01,0.00015967,2]
[404567283,1770299590023,-10000.01,0.00015967,2]
[404567284,1770299590127,-10000.01,0.00015967,2]
[404567285,1770299590241,-10000.01,0.00015967,2]
[404567286,1770299590337,-10000.01,0.00015967,2]
[404567287,1770299590553,-10000.01,0.00015967,2]
[404567288,1770299590672,-10000.01,0.00015967,2]
[404567289,1770299592644,-10000.01,0.00015967,2]
[404567290,1770299592781,-10000.01,0.00015967,2]
[404567291,1770299592934,-10000.01,0.00015967,2]
[404567292,1770299593099,-10000.01,0.00015967,2]
[404567293,1770299593219,-10000.01,0.00015967,2]
[404567294,1770299593338,-10000.01,0.00015967,2]
[404567295,1770299593513,-10000.01,0.00015967,2]
[404567296,1770299982049,500.0,0.00014,7]
[404567305,1770300339008,-293.47590332,0.000146,2]
[404567316,1770300631608,-500.0,0.000146,2]
[404567317,1770300631618,-108.28580498,0.000146,2]
[404567318,1770300631629,-391.71419502,0.000146,2]
[404567319,1770300631639,-500.0,0.000146,2]
[404567320,1770300631648,-271.0,0.000146,2]
[404567321,1770300631658,-347.37162909,0.000146,2]
[404567322,1770300631667,-339.04908735,0.00014652,2]
[404567323,1770300631699,-260.95091265,0.00014652,2]
[404567324,1770300631708,-1200.0,0.00014704,2]
[404567325,1770300631718,-1264.71232027,0.00014705,2]
[404567326,1770300631727,-300.0,0.00014751,2]
[404567327,1770300631737,-300.0,0.00014751,2]
[404567328,1770300631747,-866.03,0.00014752,2]
[404567329,1770300631756,-600.0,0.00014783,2]
[404567330,1770300631766,-600.0,0.00014783,2]
[404567331,1770300631775,-300.0,0.00014809,2]
[404567332,1770300631785,-2500.0,0.0001481,2]
[404567333,1770300631795,-3445.44,0.00014901,2]
[404567334,1770300631804,-150.0,0.00015019,2]
[404567335,1770300631814,-500.0,0.00015148,2]
[404567337,1770300631828,-1000.0,0.00015148,2]
[404567339,1770300631838,-200.01,0.000153,2]
[404567340,1770300631847,-152.01739561,0.00015353,2]
[404567341,1770300631857,-152.62,0.00015469,2]
[404567342,1770300631868,-391.23870994,0.00015478,2]
[404567343,1770300631878,-1553.4601282,0.00015478,2]
[404567344,1770300631888,-355.40591808,0.00015478,2]
[404567346,1770300631899,-595.53008834,0.00015478,2]
[404567348,1770300631908,-169.4141922,0.00015479,2]
[404567349,1770300631918,-49491.84077033,0.00015479,2]
[404567350,1770300631929,-819.19536288,0.00015479,2]
[404567351,1770300631964,-27160.23770671,0.00015479,2]
[404567352,1770300632112,-29034.69203101,0.00015479,2]
[404567353,1770300632130,-8032.05825615,0.00015479,2]
[404567354,1770300632141,-4728.2,0.00015479,2]
[404567355,1770300632152,-3406.59746186,0.00015479,2]
[404567356,1770300632163,-1432.6153019,0.00015479,2]
[404567357,1770300632174,-292.97700002,0.00015479,2]
[404567358,1770300632191,-4354.20471464,0.00015479,2]
[404567361,1770300637744,-500.0,0.00015478,2]
[404567362,1770300637754,-196.05560694,0.00015478,2]
[404567363,1770300637766,-281.55,0.00015478,2]
[404567364,1770300637778,-22.39439306,0.00015478,2]
[404567365,1770300637787,-500.0,0.00015478,2]
[404567366,1770300637797,-500.0,0.00015478,2]
[404567367,1770300637806,-500.0,0.00015478,2]
[404567368,1770300637816,-500.0,0.00015478,2]
[404567369,1770300637827,-500.0,0.00015478,2]
[404567370,1770300637837,-500.0,0.00015478,2]
[404567371,1770300637847,-291.07194051,0.00015478,2]
[404567372,1770300637858,-208.92805949,0.00015478,2]
[404567373,1770300637869,-323.62264633,0.00015478,2]
[404567374,1770300637879,-500.0,0.00015478,2]
[404567376,1770300637888,-500.0,0.00015478,2]
[404567378,1770300637898,-621.04170236,0.00015479,2]
[404567380,1770300637910,-96.34168529,0.00015479,2]
[404567382,1770300637919,-3355.09350769,0.00015479,2]
[404567384,1770300637930,-3375.5170958,0.00015479,2]
[404567386,1770300637941,-1691.06524236,0.00015479,2]
[404567389,1770300637952,-332.74352553,0.00015479,2]
[404567391,1770300637971,-29029.90995989,0.00015479,2]
[404567394,1770300637982,-597.05296577,0.00015479,2]
[404567548,1770300639999,-2621855.05382529,0.00015479,2]
[404567549,1770300640267,-2266.94355509,0.00015479,2]
[404567550,1770300640278,-348.71,0.00015479,2]
[404567556,1770300643602,-568.09110808,0.00015479,2]
[404567557,1770300644645,-297.09391999,0.00015479,2]
[404567561,1770300645894,-349.92672172,0.00015479,2]
[404567562,1770300646261,-272.85,0.00015479,2]
[404567563,1770300646287,-7898.15927521,0.00015479,2]
[404567578,1770301313257,-150.0,0.0002,20]
[404567580,1770301379084,-168.0,0.0002142,120]
[404567581,1770301379121,-170.0,0.00021594,120]
[404567616,1770301831853,-3380.02180898,0.0001,2]
[404567619,1770301831863,-232.0,0.0001,2]
[404567622,1770301831872,-6611.09729915,0.000107,2]
[404567625,1770301831882,-971.04551952,0.00011,2]
[404567628,1770301831892,-250.0,0.000121,2]
[404567632,1770301831902,-597.0702998,0.00012248,2]
[404567635,1770301831913,-225.0,0.00012298,2]
[404567638,1770301831923,-150.0,0.00012298,2]
[404567639,1770301831940,-26258.46384651,0.00012299,2]
[404567640,1770301831953,-2738.33598373,0.00012299,2]
[404567641,1770301831964,-501.00324206,0.00012299,2]
[404567642,1770301831975,-250.0,0.00012299,2]
[404567643,1770301831986,-575.75,0.00012299,2]
[404567644,1770301832005,-2162.61598113,0.00012299,2]
[404567645,1770301832016,-1864.3836981,0.00012299,2]
[404567646,1770301832028,-1245.58737072,0.00012299,2]
[404567647,1770301832039,-733.9124624,0.00012299,2]
[404567648,1770301832088,-2031.76104923,0.00012299,2]
[404567649,1770301832099,-1398.56766829,0.00012299,2]
[404567670,1770301837904,-9476.39340091,0.00012299,2]
[404567671,1770301837972,-11406.22009692,0.00012299,2]
[404567672,1770301837982,-250.0,0.00012349,2]
[404567673,1770301837992,-2356.98826096,0.00012399,2]
[404567674,1770301838005,-6921.46469655,0.00012399,2]
[404567675,1770301838017,-1431.50645455,0.00012399,2]
[404567676,1770301838029,-2320.58896356,0.00012399,2]
[404567677,1770301838042,-1542.12434419,0.00012399,2]
[404567678,1770301838054,-373.38091558,0.00012399,2]
[404567679,1770301838065,-511.70554514,0.00012399,2]
[404567680,1770301838081,-400.0,0.00012399,2]
[404567681,1770301838094,-1396.78893979,0.00012399,2]
[404567683,1770301838107,-2905.84920475,0.00012399,2]
[404567685,1770301838121,-573.52585022,0.00012399,2]
[404567687,1770301838131,-181.57983279,0.000125,2]
[404567690,1770301838151,-7197.84528878,0.000125,2]
[404567692,1770301838162,-216.65,0.00012952,2]
[404567694,1770301838173,-20733.92317527,0.0001301,2]
[404567696,1770301838188,-166.66,0.0001302,2]
[404567698,1770301838198,-378.0,0.00013206,2]
[404567700,1770301838208,-166.66,0.00013294,2]
[404567702,1770301838220,-393.0,0.00013469,2]
[404567704,1770301838230,-250.0,0.00013529,2]
[404567706,1770301838240,-166.66,0.00013568,2]
[404567708,1770301838250,-200.0,0.00013589,2]
[404567710,1770301838262,-151.0,0.00013589,2]
[404567712,1770301838273,-500.0,0.00013589,2]
[404567714,1770301838283,-151.0,0.00013589,2]
[404567716,1770301838293,-500.0,0.00013589,2]
[404567718,1770301838303,-151.0,0.00013589,2]
[404567721,1770301838313,-500.0,0.00013589,2]
[404567722,1770301838323,-151.0,0.00013589,2]
[404567724,1770301838333,-500.0,0.00013589,2]
[404567726,1770301838343,-151.0,0.00013589,2]
[404567729,1770301838353,-500.0,0.00013589,2]
[404567731,1770301838364,-151.0,0.00013589,2]
[404567733,1770301838373,-500.0,0.00013589,2]
[404567735,1770301838383,-151.0,0.00013589,2]
[404567736,1770301838392,-151.0,0.00013589,2]
[404567738,1770301838402,-151.0,0.00013589,2]
[404567741,1770301838412,-151.0,0.00013589,2]
[404567743,1770301838423,-500.0,0.00013589,2]
[404567745,1770301838434,-151.0,0.00013589,2]
[404567746,1770301838443,-500.0,0.00013589,2]
[404567748,1770301838453,-500.0,0.00013589,2]
[404567750,1770301838463,-500.0,0.00013589,2]
[404567753,1770301838472,-500.0,0.00013589,2]
[404567755,1770301838482,-500.0,0.00013589,2]
[404567757,1770301838492,-500.0,0.00013589,2]
[404567758,1770301838502,-200.0,0.00013589,2]
[404567761,1770301838511,-500.0,0.00013589,2]
[404567763,1770301838521,-500.0,0.00013589,2]
[404567765,1770301838531,-500.0,0.00013589,2]
[404567767,1770301838540,-500.0,0.00013589,2]
[404567769,1770301838550,-500.0,0.00013589,2]
[404567771,1770301838559,-500.0,0.00013589,2]
[404567773,1770301838569,-500.0,0.00013589,2]
[404567775,1770301838579,-500.0,0.00013589,2]
[404567776,1770301838588,-500.0,0.00013589,2]
[404567779,1770301838598,-500.0,0.00013589,2]
[404567781,1770301838608,-270.21862608,0.00013589,2]
[404567783,1770301838618,-393.0,0.00013597,2]
[404567785,1770301838628,-150.99,0.00013597,2]
[404567787,1770301838637,-9999.99,0.00013597,2]
[404567788,1770301838647,-9999.99,0.00013597,2]
[404567790,1770301838658,-299.99,0.00013597,2]
[404567792,1770301838668,-999.99,0.00013597,2]
[404567794,1770301838678,-150.99,0.00013597,2]
[404567796,1770301838690,-4196.07,0.00013597,2]
[404567798,1770301838700,-157.14,0.00013597,2]
[404567800,1770301838710,-20733.92317527,0.00013621,2]
[404567802,1770301838720,-393.0,0.00013659,2]
[404567805,1770301838734,-378.0,0.00013661,2]
[404567807,1770301838745,-166.66,0.00013842,2]
[404567809,1770301838755,-157.14,0.00013871,2]
[404567811,1770301838766,-8053.02,0.000139,2]
[404567813,1770301838776,-9392.29,0.00013907,2]
[404567815,1770301838786,-393.0,0.00013992,2]
[404567817,1770301838796,-726.52,0.00014034,2]
[404567819,1770301838807,-1000.0,0.00014056,2]
[404567821,1770301838817,-166.66,0.00014116,2]
[404567823,1770301838827,-200.0,0.00014137,2]
[404567825,1770301838837,-200.0,0.00014137,2]
[404567827,1770301838848,-157.14,0.00014145,2]
[404567829,1770301838858,-20733.92317527,0.00014233,2]
[404567831,1770301838868,-378.0,0.00014361,2]
[404567833,1770301838878,-166.66,0.0001439,2]
[404567835,1770301838888,-157.14,0.00014419,2]
[404567838,1770301838898,-166.66,0.00014471,2]
[404567840,1770301838909,-393.0,0.00014496,2]
[404567842,1770301838919,-500.0,0.00014559,2]
[404567844,1770301838929,-393.0,0.0001459,2]
[404567846,1770301838944,-500.0,0.000146,2]
[404567848,1770301838954,-500.0,0.000146,2]
[404567850,1770301838964,-500.0,0.000146,2]
[404567852,1770301838975,-173.07272258,0.000146,2]
[404567854,1770301838985,-500.0,0.000146,2]
[404567856,1770301838996,-500.0,0.000146,2]
[404567858,1770301839006,-500.0,0.000146,2]
[404567860,1770301839016,-500.0,0.000146,2]
[404567862,1770301839026,-500.0,0.000146,2]
[404567864,1770301839036,-500.0,0.000146,2]
[404567866,1770301839046,-500.0,0.000146,2]
[404567868,1770301839056,-500.0,0.000146,2]
[404567870,1770301839067,-500.0,0.000146,2]
[404567872,1770301839077,-500.0,0.000146,2]
[404567874,1770301839087,-500.0,0.000146,2]
[404567876,1770301839097,-500.0,0.000146,2]
[404567878,1770301839107,-500.0,0.000146,2]
[404567880,1770301839116,-500.0,0.000146,2]
[404567882,1770301839126,-300.0,0.00014629,2]
[404567884,1770301839136,-151.0,0.00014634,2]
[404567886,1770301839146,-152.0,0.00014653,3]
[404567888,1770301839155,-200.0,0.00014685,2]
[404567890,1770301839167,-200.0,0.00014685,2]
[404567892,1770301839180,-157.14,0.00014693,2]
[404567894,1770301839193,-20733.92317527,0.00014844,2]
[404567896,1770301839203,-393.0,0.00014927,2]
[404567899,1770301839215,-166.66,0.00014949,2]
[404567901,1770301839229,-500.0,0.00014959,2]
[404567903,1770301839240,-157.14,0.00014967,2]
[404567905,1770301839250,-393.0,0.00014992,2]
[404567907,1770301839259,-250.0,0.00015,2]
[404567909,1770301839268,-270.0,0.00015,2]
[404567911,1770301839278,-24433.48178795,0.00015,2]
[404567914,1770301839291,-5326.24083534,0.00015,2]
[404567916,1770301839300,-418.21759378,0.00015,2]
[404567918,1770301839309,-1032.01,0.00015029,2]
[404567920,1770301839319,-450.32,0.00015068,2]
[404567922,1770301839328,-847.11245274,0.00015148,2]
[404567923,1770301839338,-152.01739561,0.00015224,2]
[404567925,1770301839348,-200.0,0.00015233,2]
[404567928,1770301839360,-200.0,0.00015233,2]
[404567930,1770301839370,-157.14,0.00015241,2]
[404567932,1770301839380,-1000.0,0.00015279,2]
[404567934,1770301839389,-1517.64,0.000153,2]
[404567936,1770301839398,-393.0,0.00015357,2]
[404567938,1770301839407,-393.0,0.00015368,2]
[404567940,1770301839416,-8810.5713,0.00015379,2]
[404567942,1770301839425,-150.0,0.000154,2]
[404567944,1770301839438,-508.83519453,0.000154,2]
[404567946,1770301839447,-166.66,0.00015427,2]
[404567948,1770301839456,-393.0,0.00015429,2]
[404567950,1770301839466,-150.0,0.00015452,2]
[404567952,1770301839476,-17942.66693059,0.00015455,2]
[404567954,1770301839488,-638.55537377,0.00015455,2]
[404567991,1770301840072,-2152.70087091,0.00015455,2]
[404567992,1770301840083,-229.41148548,0.00015478,2]
[404567993,1770301840394,-300.94232191,0.00015478,2]
[404567994,1770301840406,-318.77517234,0.00015478,2]
[404567996,1770301844829,-150.87102027,0.00015478,2]
[404567997,1770301844839,-1881.8181505,0.00015479,2]
[404567998,1770301844848,-24706.5573525,0.00015479,2]
[404567999,1770301844858,-232068.4187118,0.00015479,2]
[404568000,1770301844867,-14634.649067,0.00015479,2]
[404568001,1770301844877,-21934.7794034,0.00015479,2]
[404568002,1770301844886,-983.7312206,0.00015479,2]
[404568004,1770301844896,-157.14,0.00015515,2]
[404568006,1770301844905,-152.0,0.00015625,3]
[404568008,1770301844914,-393.0,0.00015638,2]
[404568009,1770301844924,-451.36197851,0.00015666,2]
[404568010,1770301844933,-479.436717,0.00015674,7]
[404568011,1770301844946,-500.0,0.00015688,2]
[404568012,1770301844955,-393.0,0.00015707,2]
[404568013,1770301844966,-200.0,0.00015781,2]
[404568014,1770301844976,-200.0,0.00015781,2]
[404568015,1770301844986,-726.52,0.00015789,2]
[404568016,1770301844997,-157.14,0.00015789,2]
[404568017,1770301845011,-2046.60264728,0.00015807,2]
[404568018,1770301845021,-1000.0,0.00015813,2]
[404568019,1770301845032,-151.0,0.00015864,2]
[404568020,1770301845042,-151.0,0.00015864,2]
[404568021,1770301845052,-151.0,0.00015864,2]
[404568022,1770301845062,-393.0,0.00015871,2]
[404568023,1770301845072,-393.0,0.00015902,2]
[404568024,1770301845084,-166.66,0.00015904,2]
[404568025,1770301845094,-1004.24833386,0.00015966,5]
[404568026,1770301845104,-957.19260386,0.00016,2]
[404568027,1770301845114,-320.47368523,0.00016,2]
[404568028,1770301845128,-5956.53345956,0.00016,2]
[404568029,1770301845147,-393.0,0.00016014,2]
[404568030,1770301845163,-393.0,0.00016051,2]
[404568031,1770301845177,-157.14,0.00016063,2]
[404568032,1770301845196,-20733.92317527,0.00016066,2]
[404568033,1770301845208,-5000.00094263,0.000162,5]
[404568034,1770301845220,-500.0,0.00016328,2]
[404568035,1770301845230,-342.33387116,0.00016329,2]
[404568036,1770301845241,-200.0,0.00016329,2]
[404568037,1770301845253,-200.0,0.00016329,2]
[404568038,1770301845264,-157.14,0.00016337,2]
[404568039,1770301845274,-1000.0,0.00016346,2]
[404568040,1770301845285,-606.0,0.00016356,2]
[404568041,1770301845295,-378.0,0.00016367,2]
[404568042,1770301845305,-166.66,0.00016382,2]
[404568043,1770301845314,-2219.91987075,0.000164,2]
[404568044,1770301845324,-5858.40366147,0.000164,2]
[404568045,1770301845334,-450.32,0.00016438,2]
[404568046,1770301845344,-1000.0,0.00016438,2]
[404568047,1770301845354,-393.0,0.0001648,2]
[404568048,1770301845364,-152.01739561,0.00016493,2]
[404568049,1770301845374,-393.0,0.00016498,2]
[404568050,1770301845384,-3444.22470316,0.000165,5]
[404568051,1770301845396,-2085.77529684,0.000165,5]
[404568052,1770301845406,-909.24,0.0001654,2]
[404568053,1770301845415,-216.65,0.0001657,2]
[404568054,1770301845425,-909.24,0.00016571,2]
[404568055,1770301845435,-909.24,0.00016601,2]
[404568056,1770301845448,-1000.0,0.00016604,2]
[404568057,1770301845458,-157.14,0.00016611,2]
[404568058,1770301845467,-393.0,0.00016631,2]
[404568059,1770301845477,-909.24,0.00016631,2]
[404568060,1770301845487,-153.52,0.00016633,2]
[404568061,1770301845496,-909.24,0.00016662,2]
[404568062,1770301845505,-20733.92317527,0.00016678,2]
[404568063,1770301845515,-909.24,0.00016692,2]
[404568064,1770301845524,-1000.0,0.00016712,2]
[404568065,1770301845534,-909.24,0.00016723,2]
[404568066,1770301845543,-1000.0,0.00016737,2]
[404568067,1770301845553,-909.24,0.00016753,2]
[404568068,1770301845562,-909.24,0.00016784,2]
[404568069,1770301845573,-909.24,0.00016814,2]
[404568070,1770301845584,-909.24,0.00016845,2]
[404568071,1770301845593,-261.0,0.00016857,2]
[404568072,1770301845604,-166.66,0.0001686,2]
[404568073,1770301845613,-909.24,0.00016875,2]
[404568074,1770301845623,-200.0,0.00016877,2]
[404568075,1770301845632,-200.0,0.00016877,2]
[404568076,1770301845642,-157.14,0.00016885,2]
[404568077,1770301845651,-524.0,0.00016894,2]
[404568078,1770301845661,-909.24,0.00016906,2]
[404568079,1770301845671,-909.24,0.00016936,2]
[404568080,1770301845680,-909.24,0.00016967,2]
[404568081,1770301845690,-393.0,0.00016984,2]
[404568082,1770301845703,-1000.0,0.00016986,2]
[404568083,1770301845713,-909.24,0.00016997,2]
[404568084,1770301845732,-500.0,0.00017,2]
[404568085,1770301845741,-300.0,0.00017,2]
[404568086,1770301845751,-2034.15123261,0.00017,2]
[404568088,1770301845760,-909.24,0.00017028,2]
[404568089,1770301845770,-322.6107,0.00017045,2]
[404568090,1770301845779,-721.12765535,0.00017045,2]
[404568091,1770301845789,-200.0,0.00017045,2]
[404568092,1770301845798,-2000.0,0.00017045,2]
[404568093,1770301845807,-176.28122483,0.00017045,2]
[404568094,1770301845817,-209.40437684,0.00017045,2]
[404568095,1770301845827,-2000.0,0.00017045,2]
[404568096,1770301845836,-2000.0,0.00017045,2]
[404568097,1770301845845,-2000.0,0.00017045,2]
[404568098,1770301845855,-2000.0,0.00017045,2]
[404568099,1770301845865,-2000.0,0.00017045,2]
[404568100,1770301845875,-2000.0,0.00017045,2]
[404568101,1770301845885,-2000.0,0.00017045,2]
[404568102,1770301845895,-2000.0,0.00017045,2]
[404568103,1770301845905,-2000.0,0.00017045,2]
[404568104,1770301845915,-2000.0,0.00017045,2]
[404568106,1770301845925,-174.61919141,0.00017045,2]
[404568107,1770301845935,-250.0,0.00017045,2]
[404568108,1770301845949,-250.0,0.00017045,2]
[404568109,1770301845959,-250.0,0.00017045,2]
[404568110,1770301845970,-199.92628631,0.00017045,2]
[404568111,1770301845980,-277.35679052,0.00017045,2]
[404568112,1770301845990,-578.20924308,0.00017045,2]
[404568114,1770301846000,-209.40437684,0.00017045,2]
[404568115,1770301846010,-500.0,0.00017045,2]
[404568116,1770301846020,-500.0,0.00017045,2]
[404568117,1770301846030,-500.0,0.00017045,2]
[404568118,1770301846039,-743.50770149,0.00017045,2]
[404568119,1770301846049,-500.0,0.00017045,2]
[404568120,1770301846059,-500.0,0.00017045,2]
[404568121,1770301846069,-500.0,0.00017045,2]
[404568122,1770301846079,-500.0,0.00017045,2]
[404568123,1770301846092,-494.97768813,0.00017045,2]
[404568124,1770301846108,-500.0,0.00017045,2]
[404568125,1770301846124,-512.54322178,0.00017045,2]
[404568126,1770301846144,-445.7744494,0.00017045,2]
[404568127,1770301846154,-250.0,0.00017045,2]
[404568128,1770301846166,-250.0,0.00017045,2]
[404568129,1770301846180,-250.0,0.00017045,2]
[404568130,1770301846196,-250.0,0.00017045,2]
[404568131,1770301846207,-250.0,0.00017045,2]
[404568132,1770301846219,-250.0,0.00017045,2]
[404568133,1770301846229,-250.0,0.00017045,2]
[404568134,1770301846243,-250.0,0.00017045,2]
[404568135,1770301846261,-250.0,0.00017045,2]
[404568136,1770301846271,-250.0,0.00017045,2]
[404568137,1770301846281,-250.0,0.00017045,2]
[404568138,1770301846291,-209.40437684,0.00017045,2]
[404568139,1770301846301,-250.0,0.00017045,2]
[404568140,1770301846310,-250.0,0.00017045,2]
[404568141,1770301846321,-250.0,0.00017045,2]
[404568142,1770301846330,-250.0,0.00017045,2]
[404568143,1770301846340,-250.0,0.00017045,2]
[404568144,1770301846350,-250.0,0.00017045,2]
[404568145,1770301846361,-250.0,0.00017045,2]
[404568146,1770301846372,-250.0,0.00017045,2]
[404568147,1770301846382,-250.0,0.00017045,2]